[Event "CCCSA GM Norm A 2019"]
[Site "Charlotte"]
[Date "2019.06.08"]
[Round "6.2"]
[White "Hong, Andrew"]
[Black "Wang, Tianqi"]
[Result "1/2-1/2"]
[ECO "C54"]
[WhiteElo "2414"]
[BlackElo "2333"]
[Annotator "ChessBase"]
[PlyCount "114"]
[EventDate "2019.06.05"]
[EventType "tourn"]
[EventCountry "USA"]
[SourceTitle "playchess.com"]
[Source "ChessBase"]
[SourceQuality "1"]
[TimeControl "5400+30"]

1. e4 {[%emt 0:00:38]} e5 {[%emt 0:00:00]} 2. Nf3 {[%emt 0:00:44]} Nc6 {[%emt 0:00:00]} 3. Bc4 {[%emt 0:00:45]} Bc5 {[%emt 0:00:00]} 4. O-O {[%emt 0:00:10]} Nf6 {[%emt 0:00:00]} 5. d3 {[%emt 0:00:26]} d6 {[%emt 0:00:00]} 6. c3 {[%emt 0:00:32]} O-O {[%emt 0:00:22]} 7. h3 {[%emt 0:00:52]} a6 {[%emt 0:00:22]} 8. Re1 {[%emt 0:00:35]} Ba7 {[%emt 0:00:18]} 9. Bb3 {[%emt 0:00:30]} Ne7 {[%emt 0:00:21]} 10. Nbd2 {[%emt 0:02:02]} Ng6 {[%emt 0:00:14]} 11. Nf1 {[%emt 0:00:31]} c6 {[%emt 0:01:20]} 12. Ng3 {[%emt 0:04:50]} d5 {[%emt 0:02:00]} 13. exd5 {[%emt 0:09:28]} Nxd5 {[%emt 0:00:09]} 14. d4 {[%emt 0:01:07]} exd4 {[%emt 0:00:44]} 15. Nxd4 {[%emt 0:00:27]} Bb6 {[%emt 0:05:47]} 16. Ndf5 {[%emt 0:21:23]} Be6 {[%emt 0:00:59]} 17. Bc2 {[%emt 0:10:26]} Qc7 {[%emt 0:12:22]} 18. Bg5 {[%emt 0:14:28]} Rae8 {[%emt 0:05:37]} 19. Qg4 {[%emt 0:14:29]} Ne5 {[%emt 0:11:23]} 20. Qe4 {[%emt 0:07:35]} Bxf5 {[%emt 0:10:22]} 21. Nxf5 {[%emt 0:01:57]} g6 {[%emt 0:00:15]} 22. Nd4 {[%emt 0:02:02]} Nc4 {[%emt 0:06:20]} 23. Qxe8 {[%emt 0:01:37]} Rxe8 {[%emt 0:00:04]} 24. Rxe8+ {[%emt 0:00:08]} Kg7 {[%emt 0:00:01]} 25. Rae1 {[%emt 0:01:54]} Bxd4 {[%emt 0:00:52]} 26. cxd4 {[%emt 0:00:19]} Nxb2 {[%emt 0:02:18]} 27. Ra8 {[%emt 0:01:26]} h6 {[%emt 0:02:14]} 28. Bc1 {[%emt 0:01:24]} Nc4 {[%emt 0:00:14]} 29. Bb3 {[%emt 0:00:36]} Ncb6 {[%emt 0:02:08]} 30. Rae8 {[%emt 0:00:07]} a5 {[%emt 0:00:19]} 31. Ba3 {[%emt 0:00:53]} a4 {[%emt 0:07:22]} 32. Bd1 {[%emt 0:00:01]} Qf4 {[%emt 0:00:26]} 33. Bf3 {[%emt 0:01:14]} Qd2 {[%emt 0:00:53]} 34. Bd6 {[%emt 0:00:44]} Nc4 {[%emt 0:03:21]} 35. Bf8+ {[%emt 0:00:27]} Kf6 {[%emt 0:04:15]} 36. Rd1 {[%emt 0:00:41]} Qxa2 {[%emt 0:00:39]} 37. Bxh6 {[%emt 0:00:27]} Qb3 {[%emt 0:00:51]} 38. Rde1 {[%emt 0:00:31]} Nd6 {[%emt 0:00:54]} 39. Rd8 {[%emt 0:00:32]} Nf5 {[%emt 0:00:14]} 40. Bxd5 {[%emt 0:00:27]} cxd5 {[%emt 0:00:22]} 41. Bf4 {[%emt 0:00:15]} Ng7 {[%emt 0:19:46]} 42. Rd7 {[%emt 0:00:14]} g5 {[%emt 0:00:51]} 43. Ree7 {[%emt 0:01:01]} gxf4 {[%emt 0:01:43]} 44. Rxf7+ {[%emt 0:00:08]} Ke6 {[%emt 0:00:07]} 45. Rxg7 {[%emt 0:00:45]} Qd1+ {[%emt 0:01:57]} 46. Kh2 {[%emt 0:00:01]} Qxd4 {[%emt 0:00:15]} 47. Rxb7 {[%emt 0:00:51]} Qxf2 {[%emt 0:01:24]} 48. Ra7 {[%emt 0:00:39]} Qc2 {[%emt 0:00:50]} 49. Rgc7 {[%emt 0:00:35]} Qb3 {[%emt 0:00:19]} 50. Rc6+ {[%emt 0:00:32]} Ke5 {[%emt 0:00:09]} 51. Rca6 {[%emt 0:00:29]} Qg3+ {[%emt 0:00:42]} 52. Kg1 {[%emt 0:00:29]} Qe1+ {[%emt 0:00:08]} 53. Kh2 {[%emt 0:00:03]} Qg3+ {[%emt 0:00:02]} 54. Kg1 {[%emt 0:00:54]} f3 {[%emt 0:00:10]} 55. Re7+ {[%emt 0:00:04]} Kd4 {[%emt 0:01:34]} 56. Rxa4+ {[%emt 0:00:04]} Kc5 {[%emt 0:00:10]} 57. Rg4 {[%emt 0:00:51]} Qd6 {[%emt 0:00:26]} 1/2-1/2

[Event "CCCSA GM Norm A 2019"]
[Site "Charlotte"]
[Date "2019.06.08"]
[Round "6.3"]
[White "Zierk, Steven"]
[Black "Gauri, Shankar"]
[Result "1-0"]
[ECO "E11"]
[WhiteElo "2501"]
[BlackElo "2378"]
[Annotator "ChessBase"]
[PlyCount "57"]
[EventDate "2019.06.05"]
[EventType "tourn"]
[EventCountry "USA"]
[SourceTitle "playchess.com"]
[Source "ChessBase"]
[SourceQuality "1"]
[TimeControl "5400+30"]

1. d4 {[%emt 0:01:12]} Nf6 {[%emt 0:03:29]} 2. c4 {[%emt 0:00:56]} e6 {[%emt 0:00:08]} 3. g3 {[%emt 0:00:07]} Bb4+ {[%emt 0:04:42]} 4. Bd2 {[%emt 0:00:13]} Qe7 {[%emt 0:04:09]} 5. Bg2 {[%emt 0:01:56]} Nc6 {[%emt 0:00:30]} 6. Nf3 {[%emt 0:03:01]} Bxd2+ {[%emt 0:05:04]} 7. Nbxd2 {[%emt 0:00:44]} d6 {[%emt 0:00:15]} 8. O-O {[%emt 0:04:12]} O-O {[%emt 0:05:58]} 9. a3 {[%emt 0:05:59]} a5 {[%emt 0:05:09]} 10. e4 {[%emt 0:05:57]} e5 {[%emt 0:00:23]} 11. d5 {[%emt 0:00:10]} Nb8 {[%emt 0:00:13]} 12. b4 {[%emt 0:01:11]} Na6 {[%emt 0:00:12]} 13. Qb3 {[%emt 0:03:26]} Bg4 {[%emt 0:04:03]} 14. Rfc1 {[%emt 0:02:12]} c6 {[%emt 0:04:23]} 15. dxc6 {[%emt 0:11:20]} bxc6 {[%emt 0:00:09]} 16. c5 {[%emt 0:01:34]} dxc5 {[%emt 0:28:07]} 17. bxa5 {[%emt 0:00:25]} Bxf3 {[%emt 0:05:55]} 18. Nxf3 {[%emt 0:03:27]} Nc7 {[%emt 0:05:47]} 19. Qb6 {[%emt 0:04:12]} Nxe4 {[%emt 0:03:49]} 20. Qxc6 {[%emt 0:01:28]} f5 {[%emt 0:00:51]} 21. Nh4 {[%emt 0:01:32]} Rxa5 {[%emt 0:07:27]} 22. Nxf5 {[%emt 0:01:34]} Rxf5 {[%emt 0:00:02]} 23. Qxe4 {[%emt 0:00:43]} Qf8 {[%emt 0:02:31]} 24. Rd1 {[%emt 0:05:17]} Rxf2 {[%emt 0:05:26]} 25. Rd7 {[%emt 0:02:54]} Ne8 {[%emt 0:01:41]} 26. Qxe5 {[%emt 0:06:28]} Rc2 {[%emt 0:01:25]} 27. Bd5+ {[%emt 0:00:40]} Kh8 {[%emt 0:00:01]} 28. Rf7 {[%emt 0:00:16]} Qg8 {[%emt 0:00:02]} 29. Re7 {[%emt 0:00:28]} 1-0

[Event "CCCSA GM Norm A 2019"]
[Site "Charlotte"]
[Date "2019.06.08"]
[Round "6.4"]
[White "Ostrovskiy, Aleksandr"]
[Black "Jacobson, Brandon"]
[Result "1-0"]
[ECO "B13"]
[WhiteElo "2437"]
[BlackElo "2486"]
[Annotator "ChessBase"]
[PlyCount "65"]
[EventDate "2019.06.05"]
[EventType "tourn"]
[EventCountry "USA"]
[SourceTitle "playchess.com"]
[Source "ChessBase"]
[SourceQuality "1"]
[TimeControl "5400+30"]

1. e4 {[%emt 0:08:01]} c6 {[%emt 0:01:39]} 2. d4 {[%emt 0:00:05]} d5 {[%emt 0:00:05]} 3. exd5 {[%emt 0:04:57]} cxd5 {[%emt 0:00:07]} 4. Bd3 {[%emt 0:00:03]} Nc6 {[%emt 0:00:05]} 5. c3 {[%emt 0:00:06]} Qc7 {[%emt 0:00:29]} 6. Ne2 {[%emt 0:02:01]} Bg4 {[%emt 0:00:25]} 7. O-O {[%emt 0:00:17]} e6 {[%emt 0:01:50]} 8. Qe1 {[%emt 0:00:38]} Be7 {[%emt 0:00:33]} 9. Ng3 {[%emt 0:13:34]} g6 {[%emt 0:09:30]} 10. f3 {[%emt 0:06:42]} Bf5 {[%emt 0:00:13]} 11. Nxf5 {[%emt 0:01:57]} gxf5 {[%emt 0:03:10]} 12. a4 {[%emt 0:06:39]} Bd6 {[%emt 0:27:33]} 13. Qh4 {[%emt 0:05:22]} Nce7 {[%emt 0:03:08]} 14. Na3 {[%emt 0:18:15]} a6 {[%emt 0:01:02]} 15. g3 {[%emt 0:11:22]} Ng6 {[%emt 0:04:22]} 16. Qh3 {[%emt 0:00:29]} h5 {[%emt 0:00:38]} 17. Bg5 {[%emt 0:03:52]} Be7 {[%emt 0:02:00]} 18. Bd2 {[%emt 0:05:19]} Nf6 {[%emt 0:11:25]} 19. Nc2 {[%emt 0:01:05]} O-O-O {[%emt 0:07:48]} 20. Kh1 {[%emt 0:02:28]} Ng4 {[%emt 0:10:24]} 21. fxg4 {[%emt 0:01:55]} hxg4 {[%emt 0:00:09]} 22. Qg2 {[%emt 0:00:07]} Bd6 {[%emt 0:00:25]} 23. Be1 {[%emt 0:04:04]} Rh3 {[%emt 0:00:03]} 24. Ne3 {[%emt 0:01:13]} Nh4 {[%emt 0:09:48]} 25. Qxh3 {[%emt 0:00:07]} gxh3 {[%emt 0:00:01]} 26. gxh4 {[%emt 0:00:01]} Rg8 {[%emt 0:01:21]} 27. Rf3 {[%emt 0:01:44]} Bxh2 {[%emt 0:02:21]} 28. Bf2 {[%emt 0:00:24]} Rg6 {[%emt 0:02:49]} 29. Rxh3 {[%emt 0:00:33]} f4 {[%emt 0:00:33]} 30. Bxg6 {[%emt 0:00:29]} fxe3 {[%emt 0:00:24]} 31. Bxe3 {[%emt 0:00:33]} Bd6 {[%emt 0:00:37]} 32. Bd3 {[%emt 0:00:29]} Qc6 {[%emt 0:00:29]} 33. h5 {[%emt 0:00:33]} 1-0

[Event "CCCSA GM Norm A 2019"]
[Site "Charlotte"]
[Date "2019.06.08"]
[Round "6.5"]
[White "Korley, Kassa"]
[Black "Yoo, Christopher Woojin"]
[Result "1/2-1/2"]
[ECO "A48"]
[WhiteElo "2430"]
[BlackElo "2430"]
[Annotator "ChessBase"]
[PlyCount "98"]
[EventDate "2019.06.05"]
[EventType "tourn"]
[EventCountry "USA"]
[SourceTitle "playchess.com"]
[Source "ChessBase"]
[SourceQuality "1"]
[TimeControl "5400+30"]

1. d4 {[%emt 0:02:22]} Nf6 {[%emt 0:00:00]} 2. Bf4 {[%emt 0:00:03]} g6 {[%emt 0:00:00]} 3. e3 {[%emt 0:00:09]} Bg7 {[%emt 0:00:13]} 4. Nf3 {[%emt 0:00:03]} O-O {[%emt 0:00:34]} 5. Be2 {[%emt 0:00:03]} d6 {[%emt 0:00:36]} 6. h3 {[%emt 0:00:06]} b6 {[%emt 0:00:35]} 7. O-O {[%emt 0:00:17]} Bb7 {[%emt 0:00:07]} 8. c3 {[%emt 0:01:31]} Nbd7 {[%emt 0:00:14]} 9. a4 {[%emt 0:00:28]} a5 {[%emt 0:05:18]} 10. Nbd2 {[%emt 1:29:58]} Ne4 {[%emt 0:10:00]} 11. Nxe4 {[%emt 0:00:00]} Bxe4 {[%emt 0:00:04]} 12. Nd2 {[%emt 0:00:00]} Bb7 {[%emt 0:00:25]} 13. Bf3 {[%emt 0:00:00]} Qc8 {[%emt 0:06:14]} 14. Qb3 {[%emt 0:00:00]} e5 {[%emt 0:07:56]} 15. Bg3 {[%emt 0:00:00]} Re8 {[%emt 0:16:54]} 16. Rfd1 {[%emt 0:00:00]} Nf6 {[%emt 0:09:26]} 17. dxe5 {[%emt 0:00:00]} dxe5 {[%emt 0:00:17]} 18. Bxb7 {[%emt 0:00:00]} Qxb7 {[%emt 0:00:03]} 19. Bh4 {[%emt 0:00:00]} Qc6 {[%emt 0:07:56]} 20. Bxf6 {[%emt 0:00:00]} Bxf6 {[%emt 0:00:50]} 21. Qc4 {[%emt 0:00:00]} Re6 {[%emt 0:05:26]} 22. Qxc6 {[%emt 0:00:00]} Rxc6 {[%emt 0:00:05]} 23. Kf1 {[%emt 0:00:00]} Be7 {[%emt 0:03:17]} 24. Ke2 {[%emt 0:00:00]} Rd8 {[%emt 0:03:24]} 25. e4 {[%emt 0:00:00]} f6 {[%emt 0:05:59]} 26. Nf1 {[%emt 0:00:00]} Rxd1 {[%emt 0:03:43]} 27. Kxd1 {[%emt 0:00:00]} f5 {[%emt 0:03:34]} 28. Ke2 {[%emt 0:00:00]} Kf7 {[%emt 0:01:42]} 29. exf5 {[%emt 0:00:00]} gxf5 {[%emt 0:00:06]} 30. Ne3 {[%emt 0:00:00]} f4 {[%emt 0:07:41]} 31. Nf1 {[%emt 0:00:00]} Rg6 {[%emt 0:02:11]} 32. g3 {[%emt 0:00:00]} Rh6 {[%emt 0:00:35]} 33. h4 {[%emt 0:00:00]} fxg3 {[%emt 0:00:28]} 34. fxg3 {[%emt 0:00:00]} Rg6 {[%emt 0:00:31]} 35. Kf3 {[%emt 0:00:00]} Rf6+ {[%emt 0:00:31]} 36. Ke2 {[%emt 0:00:00]} Rg6 {[%emt 0:00:32]} 37. Rd1 {[%emt 0:00:00]} Ke6 {[%emt 0:00:22]} 38. b3 {[%emt 0:00:00]} e4 {[%emt 0:00:34]} 39. Rd4 {[%emt 0:00:00]} Kf5 {[%emt 0:00:34]} 40. Ne3+ {[%emt 0:00:00]} Ke5 {[%emt 0:00:14]} 41. Rd7 {[%emt 0:00:00]} Bc5 {[%emt 0:00:35]} 42. Nf1 {[%emt 0:00:00]} Rf6 {[%emt 0:00:40]} 43. Rxh7 {[%emt 0:00:00]} Rf2+ {[%emt 0:00:10]} 44. Ke1 {[%emt 0:00:00]} Ra2 {[%emt 0:00:38]} 45. Rh5+ {[%emt 0:00:00]} Ke6 {[%emt 0:00:42]} 46. Nd2 {[%emt 0:00:00]} Ra1+ {[%emt 0:00:13]} 47. Ke2 {[%emt 0:00:00]} Ra2 {[%emt 0:00:06]} 48. Ke1 {[%emt 0:00:00]} Ra1+ {[%emt 0:00:07]} 49. Ke2 {[%emt 0:00:00]} Ra2 {[%emt 0:00:09]} 1/2-1/2

[Event "CCCSA GM Norm A 2019"]
[Site "Charlotte"]
[Date "2019.06.09"]
[Round "7.2"]
[White "Jacobson, Brandon"]
[Black "Korley, Kassa"]
[Result "0-1"]
[ECO "B11"]
[WhiteElo "2486"]
[BlackElo "2430"]
[Annotator "RC"]
[PlyCount "102"]
[EventDate "2019.06.05"]
[EventType "tourn"]
[EventCountry "USA"]
[SourceTitle "playchess.com"]
[Source "ChessBase"]
[SourceQuality "1"]
[TimeControl "5400+30"]

1. e4 {[%emt 0:06:02]} c6 {[%emt 0:00:00]} 2. Nc3 {[%emt 0:00:33]} d5 {[%emt 0:00:00]} 3. Nf3 {[%emt 0:00:03]} Bg4 {[%emt 0:00:00]} 4. h3 {[%emt 0:00:05]} Bxf3 {[%emt 0:00:00]} 5. Qxf3 {[%emt 0:00:04]} Nf6 {[%emt 0:00:00]} 6. Be2 {[%emt 0:02:15]} e6 {[%emt 0:00:42]} 7. Qf4 {[%emt 0:00:58]} g6 {[%emt 0:04:55]} 8. exd5 {[%emt 0:06:52]} exd5 {[%emt 0:00:53]} 9. d4 {[%emt 0:00:44]} Bg7 {[%emt 0:00:32]} 10. Qe3+ {[%emt 0:01:51]} Kf8 {[%emt 0:01:22]} 11. Qg3 {[%emt 0:07:18]} Nbd7 {[%emt 0:01:09]} 12. O-O {[%emt 0:11:08]} Ne8 {[%emt 0:03:12]} 13. Be3 {[%emt 0:01:33]} h5 {[%emt 0:02:28]} 14. Bd3 {[%emt 0:02:06]} h4 {[%emt 0:00:26]} 15. Qg4 {[%emt 0:55:58]} Ndf6 {[%emt 0:00:43]} 16. Qe2 {[%emt 0:00:00]} Nd6 {[%emt 0:01:50]} 17. Bf4 {[%emt 0:00:00]} Nh5 {[%emt 0:06:08]} 18. Be5 {[%emt 0:00:00]} Ne8 {[%emt 0:01:53]} 19. Rae1 {[%emt 0:00:00]} Bxe5 {[%emt 0:03:35]} 20. dxe5 {[%emt 0:00:00]} Nf4 {[%emt 0:02:20]} 21. Qg4 {[%emt 0:00:00]} Nxd3 {[%emt 0:00:16]} 22. cxd3 {[%emt 0:00:00]} Ng7 {[%emt 0:00:27]} 23. Ne2 {[%emt 0:00:00]} Ne6 {[%emt 0:00:25]} 24. f4 {[%emt 0:00:00]} Rh5 {[%emt 0:00:22]} 25. f5 {[%emt 0:00:00]} Rxf5 {[%emt 0:00:06]} 26. Rxf5 {[%emt 0:00:00]} gxf5 {[%emt 0:00:03]} 27. Qxf5 {[%emt 0:00:00]} Qg5 {[%emt 0:00:05]} 28. Qxg5 {[%emt 0:00:00]} Nxg5 {[%emt 0:00:01]} 29. Nd4 {[%emt 0:00:00]} Ne6 {[%emt 0:00:58]} 30. Nf5 {[%emt 0:00:00]} Nf4 {[%emt 0:01:04]} 31. d4 {[%emt 0:00:00]} b6 {[%emt 0:04:31]} 32. Nxh4 {[%emt 0:00:00]} Ke7 {[%emt 0:00:23]} 33. Kh2 {[%emt 0:00:00]} c5 {[%emt 0:00:17]} 34. Rf1 {[%emt 0:00:00]} Nd3 {[%emt 0:00:30]} 35. Rf6 {[%emt 0:01:46]} Nxb2 {[%emt 0:00:27]} 36. Nf5+ {[%emt 0:00:08]} Kd7 {[%emt 0:00:12]} 37. Rxf7+ {[%emt 0:02:14]} Kc6 {[%emt 0:00:02]} 38. e6 {[%emt 0:03:37]} c4 {[%emt 0:00:26]} 39. Ng7 {[%emt 0:00:30]} c3 {[%emt 0:00:46]} 40. e7 {[%emt 0:00:18]} c2 {[%emt 0:00:51]} 41. e8=Q+ {[%emt 0:01:55]} Rxe8 {[%emt 0:00:06]} 42. Nxe8 {[%emt 0:00:02]} Kb5 {[%emt 0:00:05]} 43. Rf1 {[%emt 0:01:44]} Nd1 {[%emt 0:00:42]} 44. Nd6+ {[%emt 0:01:34]} Ka4 {[%emt 0:02:21]} 45. Rf7 {[%emt 0:00:40]} c1=Q {[%emt 0:00:06]} 46. Rxa7+ {[%emt 0:00:29]} Kb4 {[%emt 0:00:01]} 47. a3+ {[%emt 0:00:14]} Kb3 {[%emt 0:00:05]} 48. Rf7 {[%emt 0:00:06]} Kxa3 {[%emt 0:03:02]} 49. Nb5+ {[%emt 0:00:42]} Kb4 {[%emt 0:00:32]} 50. Nc7 {[%emt 0:00:21]} Ne3 {[%emt 0:00:19]} 51. h4 {[%emt 0:01:03]} Qb2 {[%emt 0:00:54]} 0-1

[Event "CCCSA GM Norm A 2019"]
[Site "Charlotte"]
[Date "2019.06.09"]
[Round "7.3"]
[White "Grigoryan, Karen H."]
[Black "Ostrovskiy, Aleksandr"]
[Result "1-0"]
[ECO "D35"]
[WhiteElo "2547"]
[BlackElo "2437"]
[Annotator "RC"]
[PlyCount "97"]
[EventDate "2019.06.05"]
[EventType "tourn"]
[EventCountry "USA"]
[SourceTitle "playchess.com"]
[Source "ChessBase"]
[SourceQuality "1"]
[TimeControl "5400+30"]

1. c4 {[%emt 0:00:00]} e6 {[%emt 0:04:06]} 2. Nf3 {[%emt 0:00:10]} d5 {[%emt 0:00:40]} 3. e3 {[%emt 0:00:45]} Nf6 {[%emt 0:02:04]} 4. d4 {[%emt 0:00:59]} b6 {[%emt 0:01:38]} 5. Nc3 {[%emt 0:00:35]} Bd6 {[%emt 0:00:47]} 6. b3 {[%emt 0:00:29]} O-O {[%emt 0:01:13]} 7. Bb2 {[%emt 0:02:37]} Bb7 {[%emt 0:00:59]} 8. Be2 {[%emt 0:00:36]} Nbd7 {[%emt 0:04:07]} 9. O-O {[%emt 0:00:19]} a6 {[%emt 0:03:46]} 10. Qc2 {[%emt 0:05:15]} Qe7 {[%emt 0:04:42]} 11. cxd5 {[%emt 0:01:49]} exd5 {[%emt 0:02:00]} 12. Nh4 {[%emt 0:00:23]} g6 {[%emt 0:02:31]} 13. Nf3 {[%emt 0:03:17]} Rac8 {[%emt 0:07:05]} 14. Rad1 {[%emt 0:00:20]} Rfe8 {[%emt 0:03:22]} 15. Rfe1 {[%emt 0:01:25]} Rcd8 {[%emt 0:16:34]} 16. Bf1 {[%emt 1:19:01]} Ne4 {[%emt 0:18:47]} 17. g3 {[%emt 0:00:00]} f5 {[%emt 0:08:11]} 18. Bg2 {[%emt 0:00:00]} Rf8 {[%emt 0:03:43]} 19. Rc1 {[%emt 0:00:00]} Rf7 {[%emt 0:00:44]} 20. Re2 {[%emt 0:00:00]} Re8 {[%emt 0:00:46]} 21. Rd1 {[%emt 0:00:00]} c6 {[%emt 0:03:39]} 22. Ree1 {[%emt 0:00:00]} a5 {[%emt 0:01:10]} 23. Na4 {[%emt 0:00:00]} Qd8 {[%emt 0:01:06]} 24. Ba1 {[%emt 0:00:00]} Bb4 {[%emt 0:01:24]} 25. Rf1 {[%emt 0:00:00]} Bd6 {[%emt 0:01:01]} 26. Nb2 {[%emt 0:00:00]} Ng5 {[%emt 0:04:19]} 27. Ne5 {[%emt 0:00:00]} Nxe5 {[%emt 0:00:23]} 28. dxe5 {[%emt 0:00:00]} Bxe5 {[%emt 0:00:47]} 29. f4 {[%emt 0:00:00]} Bg7 {[%emt 0:00:04]} 30. fxg5 {[%emt 0:00:00]} Qxg5 {[%emt 0:00:03]} 31. Na4 {[%emt 0:00:00]} Qxe3+ {[%emt 0:00:13]} 32. Qf2 {[%emt 0:00:00]} Bh6 {[%emt 0:03:07]} 33. Bd4 {[%emt 0:00:00]} Qxf2+ {[%emt 0:00:24]} 34. Bxf2 {[%emt 0:00:00]} b5 {[%emt 0:00:52]} 35. Nc5 {[%emt 0:00:00]} Bc8 {[%emt 0:00:17]} 36. Nd3 {[%emt 0:00:00]} Bg7 {[%emt 0:00:47]} 37. Rc1 {[%emt 0:00:00]} Bd7 {[%emt 0:00:11]} 38. Bb6 {[%emt 0:00:00]} a4 {[%emt 0:00:08]} 39. bxa4 {[%emt 0:00:00]} bxa4 {[%emt 0:00:01]} 40. Nc5 {[%emt 0:00:00]} Re2 {[%emt 0:00:15]} 41. Nxd7 {[%emt 0:00:00]} Rxd7 {[%emt 0:00:02]} 42. Rf2 {[%emt 0:00:00]} Rxf2 {[%emt 0:01:57]} 43. Bxf2 {[%emt 0:00:00]} Rb7 {[%emt 0:00:29]} 44. Rxc6 {[%emt 0:00:00]} Rb1+ {[%emt 0:00:08]} 45. Bf1 {[%emt 0:00:00]} a3 {[%emt 0:00:43]} 46. Rc8+ {[%emt 0:00:00]} Kf7 {[%emt 0:00:03]} 47. Rc7+ {[%emt 0:00:00]} Kg8 {[%emt 0:00:24]} 48. Rd7 {[%emt 0:00:00]} Rb2 {[%emt 0:01:16]} 49. Rxd5 {[%emt 0:00:00]} 1-0

[Event "CCCSA GM Norm A 2019"]
[Site "Charlotte"]
[Date "2019.06.09"]
[Round "7.5"]
[White "Gauri, Shankar"]
[Black "Hong, Andrew"]
[Result "0-1"]
[ECO "D77"]
[WhiteElo "2378"]
[BlackElo "2414"]
[Annotator "RC"]
[PlyCount "74"]
[EventDate "2019.06.05"]
[EventType "tourn"]
[EventCountry "USA"]
[SourceTitle "playchess.com"]
[Source "ChessBase"]
[SourceQuality "1"]
[TimeControl "5400+30"]

1. Nf3 {[%emt 0:03:57]} d5 {[%emt 0:00:00]} 2. g3 {[%emt 0:00:52]} g6 {[%emt 0:00:25]} 3. Bg2 {[%emt 0:00:36]} Bg7 {[%emt 0:00:10]} 4. d4 {[%emt 0:00:15]} Nf6 {[%emt 0:00:17]} 5. O-O {[%emt 0:00:08]} O-O {[%emt 0:00:06]} 6. c4 {[%emt 0:01:16]} dxc4 {[%emt 0:00:33]} 7. Na3 {[%emt 0:00:07]} c5 {[%emt 0:00:22]} 8. Nxc4 {[%emt 0:02:17]} Be6 {[%emt 0:01:00]} 9. b3 {[%emt 0:18:02]} Nc6 {[%emt 0:01:34]} 10. Bb2 {[%emt 0:01:20]} cxd4 {[%emt 0:02:15]} 11. Nxd4 {[%emt 0:00:52]} Nxd4 {[%emt 0:00:40]} 12. Bxd4 {[%emt 0:06:04]} b6 {[%emt 0:02:05]} 13. Ne5 {[%emt 0:18:09]} Bd5 {[%emt 0:29:18]} 14. Nc6 {[%emt 0:01:53]} Bxc6 {[%emt 0:05:51]} 15. Bxc6 {[%emt 0:01:47]} Rc8 {[%emt 0:00:27]} 16. Bg2 {[%emt 0:02:36]} Qd6 {[%emt 0:01:53]} 17. e3 {[%emt 0:00:23]} Rc7 {[%emt 0:02:39]} 18. Rc1 {[%emt 0:12:51]} Rfc8 {[%emt 0:03:34]} 19. Rxc7 {[%emt 0:02:37]} Qxc7 {[%emt 0:03:19]} 20. a4 {[%emt 0:03:14]} Ne8 {[%emt 0:01:46]} 21. Bxg7 {[%emt 0:03:38]} Kxg7 {[%emt 0:03:38]} 22. Qd4+ {[%emt 0:00:44]} Kg8 {[%emt 0:01:11]} 23. Rd1 {[%emt 0:00:56]} Nd6 {[%emt 0:02:25]} 24. e4 {[%emt 0:05:34]} Nb7 {[%emt 0:06:50]} 25. Qd7 {[%emt 0:07:28]} Nc5 {[%emt 0:03:25]} 26. Qb5 {[%emt 0:01:11]} Rd8 {[%emt 0:03:06]} 27. Rc1 {[%emt 0:02:13]} Qd6 {[%emt 0:06:21]} 28. Bf3 {[%emt 0:00:15]} Qf6 {[%emt 0:01:40]} 29. Kg2 {[%emt 0:02:43]} Rd3 {[%emt 0:03:43]} 30. Be2 {[%emt 0:00:03]} Rd2 {[%emt 0:03:03]} 31. Qc4 {[%emt 0:00:57]} Qb2 {[%emt 0:00:37]} 32. Re1 {[%emt 0:00:29]} Kg7 {[%emt 0:05:41]} 33. Rb1 {[%emt 0:00:31]} Qxb1 {[%emt 0:03:33]} 34. Qc3+ {[%emt 0:00:01]} e5 {[%emt 0:00:22]} 35. Qxe5+ {[%emt 0:00:59]} Kf8 {[%emt 0:00:51]} 36. Qb8+ {[%emt 0:00:30]} Ke7 {[%emt 0:00:35]} 37. Qe5+ {[%emt 0:00:27]} Ne6 {[%emt 0:00:36]} 0-1

[Event "CCCSA GM Norm A 2019"]
[Site "Charlotte"]
[Date "2019.06.09"]
[Round "8.1"]
[White "Ringoir, Tanguy"]
[Black "Gauri, Shankar"]
[Result "1/2-1/2"]
[ECO "E08"]
[WhiteElo "2500"]
[BlackElo "2378"]
[Annotator "ChessBase"]
[PlyCount "69"]
[EventDate "2019.06.05"]
[EventType "tourn"]
[EventCountry "USA"]
[SourceTitle "playchess.com"]
[Source "ChessBase"]
[SourceQuality "1"]
[TimeControl "5400+30"]

1. d4 {[%emt 0:00:00]} Nf6 {[%emt 0:00:00]} 2. c4 {[%emt 0:00:00]} e6 {[%emt 0:00:01]} 3. g3 {[%emt 0:00:00]} Bb4+ {[%emt 0:01:46]} 4. Bd2 {[%emt 0:00:00]} Be7 {[%emt 0:00:06]} 5. Bg2 {[%emt 0:00:06]} d5 {[%emt 0:00:09]} 6. Nf3 {[%emt 0:00:06]} c6 {[%emt 0:01:16]} 7. Qc2 {[%emt 0:00:05]} O-O {[%emt 0:00:16]} 8. O-O {[%emt 0:00:06]} b6 {[%emt 0:00:06]} 9. Bf4 {[%emt 0:01:43]} Bb7 {[%emt 0:00:57]} 10. Rd1 {[%emt 0:02:16]} Nbd7 {[%emt 0:06:25]} 11. Ne5 {[%emt 0:00:29]} Nh5 {[%emt 0:07:27]} 12. Bd2 {[%emt 0:06:44]} Nhf6 {[%emt 0:00:03]} 13. cxd5 {[%emt 0:00:55]} cxd5 {[%emt 0:00:05]} 14. Nc6 {[%emt 0:00:05]} Bxc6 {[%emt 0:00:05]} 15. Qxc6 {[%emt 0:00:03]} Rc8 {[%emt 0:03:44]} 16. Qb5 {[%emt 0:00:02]} Ne8 {[%emt 0:01:00]} 17. e3 {[%emt 0:01:37]} Nd6 {[%emt 0:00:37]} 18. Qe2 {[%emt 0:00:03]} b5 {[%emt 0:21:15]} 19. Be1 {[%emt 0:17:53]} Qb6 {[%emt 0:04:25]} 20. Nc3 {[%emt 0:06:42]} Nf6 {[%emt 0:16:43]} 21. Bf1 {[%emt 0:01:19]} Rb8 {[%emt 0:03:56]} 22. Rdc1 {[%emt 0:02:05]} Nc4 {[%emt 0:00:48]} 23. b3 {[%emt 0:02:08]} Na3 {[%emt 0:10:55]} 24. Qb2 {[%emt 0:00:09]} Rfc8 {[%emt 0:01:51]} 25. Bd3 {[%emt 0:00:01]} a6 {[%emt 0:02:29]} 26. Ne2 {[%emt 0:00:31]} b4 {[%emt 0:06:36]} 27. Rxc8+ {[%emt 0:00:15]} Rxc8 {[%emt 0:00:02]} 28. Rc1 {[%emt 0:00:04]} Qb7 {[%emt 0:01:03]} 29. f3 {[%emt 0:06:14]} g6 {[%emt 0:00:42]} 30. Bd2 {[%emt 0:05:12]} Ne8 {[%emt 0:01:40]} 31. e4 {[%emt 0:02:46]} dxe4 {[%emt 0:02:13]} 32. Bxe4 {[%emt 0:03:16]} Qd7 {[%emt 0:00:34]} 33. Rxc8 {[%emt 0:02:03]} Qxc8 {[%emt 0:00:01]} 34. Nf4 {[%emt 0:08:32]} Nf6 {[%emt 0:00:42]} 35. Kg2 {[%emt 0:01:35]} 1/2-1/2